[Event "*** Titled Tuesday Blitz"]
[Site "Chess.com"]
[Date "2020.04.21"]
[Round "2"]
[White "Lysiak_Poltorak"]
[Black "Tayson_7"]
[Result "0-1"]
[WhiteElo "2320"]
[BlackElo "2651"]
[TimeControl "180+1"]
[EndTime "10:18:26 PDT"]
[Termination "Tayson_7 won by resignation"]

1. e4 {[%clk 0:03:00.9]} 1... e5 {[%clk 0:03:00]} 2. Bc4 {[%clk 0:03:00.4]} 2...
Nc6 {[%clk 0:03:00.9]} 3. Nc3 {[%clk 0:03:00]} 3... d6 {[%clk 0:02:54.1]} 4. d3
{[%clk 0:02:56.3]} 4... Na5 {[%clk 0:02:53.9]} 5. Nge2 {[%clk 0:02:54.5]} 5...
Nxc4 {[%clk 0:02:49.8]} 6. dxc4 {[%clk 0:02:55.4]} 6... g6 {[%clk 0:02:48.1]} 7.
Be3 {[%clk 0:02:52.3]} 7... Bg7 {[%clk 0:02:47.8]} 8. f3 {[%clk 0:02:48.2]} 8...
f5 {[%clk 0:02:44.7]} 9. Qd3 {[%clk 0:02:47.5]} 9... Nf6 {[%clk 0:02:43.7]} 10.
O-O-O {[%clk 0:02:46.5]} 10... b6 {[%clk 0:02:33.1]} 11. Nd5 {[%clk 0:02:46]}
11... O-O {[%clk 0:02:26.2]} 12. h4 {[%clk 0:02:44.8]} 12... Be6 {[%clk
0:02:19.1]} 13. Bg5 {[%clk 0:02:38.8]} 13... f4 {[%clk 0:02:05.2]} 14. h5 {[%clk
0:02:35.5]} 14... Bxd5 {[%clk 0:01:38.7]} 15. cxd5 {[%clk 0:02:34.5]} 15... Qe8
{[%clk 0:01:38.5]} 16. h6 {[%clk 0:02:27.5]} 16... Bh8 {[%clk 0:01:37.4]} 17.
Rdg1 {[%clk 0:02:20.4]} 17... Nd7 {[%clk 0:01:33.6]} 18. Qd2 {[%clk 0:02:14.4]}
18... Bf6 {[%clk 0:01:29.9]} 19. Bh4 {[%clk 0:02:10.9]} 19... Bxh4 {[%clk
0:01:27.5]} 20. Rxh4 {[%clk 0:02:11.8]} 20... a5 {[%clk 0:01:27.2]} 21. g3
{[%clk 0:02:06.7]} 21... fxg3 {[%clk 0:01:26.3]} 22. Rxg3 {[%clk 0:02:07.6]}
22... Kh8 {[%clk 0:01:25.8]} 23. Ng1 {[%clk 0:02:02.5]} 23... Nc5 {[%clk
0:01:23]} 24. Nh3 {[%clk 0:01:56.4]} 24... Qb5 {[%clk 0:01:22.2]} 25. Ng5 {[%clk
0:01:32.9]} 25... Qc4 {[%clk 0:01:21.3]} 26. b3 {[%clk 0:01:25]} 26... Qb4
{[%clk 0:00:53.9]} 27. Rhg4 {[%clk 0:01:19.4]} 27... Rf6 {[%clk 0:00:30.8]} 28.
Qxb4 {[%clk 0:01:00.6]} 28... axb4 {[%clk 0:00:30.8]} 29. Kb2 {[%clk 0:01:00.3]}
29... Ra7 {[%clk 0:00:31.7]} 30. Rg1 {[%clk 0:00:58.8]} 30... Nd7 {[%clk
0:00:21.9]} 31. Ne6 {[%clk 0:00:58.2]} 31... Rxf3 {[%clk 0:00:20.6]} 32. Ng5
{[%clk 0:00:48.7]} 32... Rf6 {[%clk 0:00:18.9]} 33. Ne6 {[%clk 0:00:47.7]} 33...
Nc5 {[%clk 0:00:18.7]} 34. Nxc5 {[%clk 0:00:46.7]} 34... bxc5 {[%clk 0:00:19.6]}
35. Ra1 {[%clk 0:00:46.3]} 35... Ra8 {[%clk 0:00:19.6]} 36. a4 {[%clk
0:00:40.6]} 36... bxa3+ {[%clk 0:00:20.5]} 37. Rxa3 {[%clk 0:00:41.1]} 37...
Rxa3 {[%clk 0:00:20.7]} 38. Kxa3 {[%clk 0:00:42]} 38... Rf4 {[%clk 0:00:20.2]}
39. Rg2 {[%clk 0:00:36.8]} 39... Rxe4 {[%clk 0:00:20.2]} 40. c4 {[%clk
0:00:34.6]} 40... Kg8 {[%clk 0:00:19.5]} 41. Ka4 {[%clk 0:00:34.5]} 41... Re3
{[%clk 0:00:18.8]} 42. Kb5 {[%clk 0:00:34.1]} 42... Rxb3+ {[%clk 0:00:17]} 43.
Kc6 {[%clk 0:00:34]} 43... Kf7 {[%clk 0:00:17.6]} 44. Kd7 {[%clk 0:00:32.3]}
44... Rf3 {[%clk 0:00:16.5]} 45. Ra2 {[%clk 0:00:22.6]} 45... g5 {[%clk
0:00:16.8]} 46. Kxc7 {[%clk 0:00:21.2]} 46... Rf6 {[%clk 0:00:16.9]} 47. Ra8
{[%clk 0:00:19.4]} 47... g4 {[%clk 0:00:16]} 48. Rh8 {[%clk 0:00:18.1]} 48...
Kg6 {[%clk 0:00:16.2]} 49. Rg8+ {[%clk 0:00:16.7]} 49... Kh5 {[%clk 0:00:16.8]}
50. Kd7 {[%clk 0:00:14.8]} 50... e4 {[%clk 0:00:16.3]} 51. Ke7 {[%clk
0:00:14.5]} 51... Rxh6 {[%clk 0:00:16.8]} 52. Kf7 {[%clk 0:00:11.4]} 52... e3
{[%clk 0:00:17]} 53. Re8 {[%clk 0:00:11.2]} 53... g3 {[%clk 0:00:16.8]} 54. Rxe3
{[%clk 0:00:10.9]} 54... Rg6 {[%clk 0:00:17.4]} 55. Re1 {[%clk 0:00:10.7]} 55...
g2 {[%clk 0:00:17.8]} 56. Rg1 {[%clk 0:00:10.5]} 56... Kh4 {[%clk 0:00:18.4]}
57. Ke7 {[%clk 0:00:09.7]} 57... Kh3 {[%clk 0:00:18.4]} 0-1

[Event "*** Titled Tuesday Blitz"]
[Site "Chess.com"]
[Date "2020.04.21"]
[Round "2"]
[White "stefan_95"]
[Black "Paralinch"]
[Result "1-0"]
[WhiteElo "2620"]
[BlackElo "2951"]
[TimeControl "180+1"]
[EndTime "10:18:27 PDT"]
[Termination "stefan_95 won by resignation"]

1. d4 {[%clk 0:03:00.9]} 1... d5 {[%clk 0:02:59.8]} 2. Bf4 {[%clk 0:03:00.3]}
2... c5 {[%clk 0:02:59.7]} 3. e3 {[%clk 0:03:00.7]} 3... Nc6 {[%clk 0:03:00.2]}
4. Nf3 {[%clk 0:03:01.3]} 4... Nf6 {[%clk 0:02:58.7]} 5. Nbd2 {[%clk 0:03:01.9]}
5... Bg4 {[%clk 0:02:55.9]} 6. c3 {[%clk 0:03:01.4]} 6... e6 {[%clk 0:02:56.4]}
7. Qb3 {[%clk 0:03:01]} 7... Qc8 {[%clk 0:02:56.7]} 8. h3 {[%clk 0:02:56.9]}
8... Bh5 {[%clk 0:02:52.4]} 9. dxc5 {[%clk 0:02:57.1]} 9... Bxc5 {[%clk
0:02:49.8]} 10. Bd3 {[%clk 0:02:56.6]} 10... Bg6 {[%clk 0:02:45.7]} 11. Bxg6
{[%clk 0:02:55.9]} 11... hxg6 {[%clk 0:02:46.6]} 12. Rc1 {[%clk 0:02:56.1]}
12... O-O {[%clk 0:02:45]} 13. O-O {[%clk 0:02:54.4]} 13... Re8 {[%clk
0:02:36.6]} 14. c4 {[%clk 0:02:54.2]} 14... d4 {[%clk 0:02:33.5]} 15. exd4
{[%clk 0:02:53.1]} 15... Nxd4 {[%clk 0:02:33.8]} 16. Nxd4 {[%clk 0:02:52.5]}
16... Bxd4 {[%clk 0:02:34.7]} 17. Nf3 {[%clk 0:02:51.6]} 17... Bc5 {[%clk
0:02:34.9]} 18. Qa4 {[%clk 0:02:46.7]} 18... Qd7 {[%clk 0:02:28.4]} 19. Qxd7
{[%clk 0:02:41.7]} 19... Nxd7 {[%clk 0:02:29.3]} 20. Rfd1 {[%clk 0:02:42.2]}
20... Nf8 {[%clk 0:02:29.5]} 21. Bd6 {[%clk 0:02:33.9]} 21... Bxd6 {[%clk
0:02:22]} 22. Rxd6 {[%clk 0:02:34.8]} 22... f6 {[%clk 0:02:22.5]} 23. c5 {[%clk
0:02:29]} 23... e5 {[%clk 0:02:22.5]} 24. b4 {[%clk 0:02:27.4]} 24... Rad8
{[%clk 0:02:17.6]} 25. Rcd1 {[%clk 0:02:10.2]} 25... Ne6 {[%clk 0:02:14.2]} 26.
Rxd8 {[%clk 0:02:02.8]} 26... Rxd8 {[%clk 0:02:13.9]} 27. Rxd8+ {[%clk
0:02:03.2]} 27... Nxd8 {[%clk 0:02:14.8]} 28. Kf1 {[%clk 0:02:03]} 28... Kf7
{[%clk 0:02:15]} 29. Ke2 {[%clk 0:02:03]} 29... Ke6 {[%clk 0:02:06.8]} 30. Kd3
{[%clk 0:01:59.1]} 30... Kd5 {[%clk 0:02:06.8]} 31. Nh4 {[%clk 0:01:35.4]} 31...
e4+ {[%clk 0:01:35.9]} 32. Kc3 {[%clk 0:01:32.5]} 32... g5 {[%clk 0:01:30.3]}
33. Nf5 {[%clk 0:01:30.7]} 33... Ne6 {[%clk 0:01:25.7]} 34. Ne7+ {[%clk
0:01:30.9]} 34... Ke5 {[%clk 0:01:23.1]} 35. Kc4 {[%clk 0:01:31.4]} 35... f5
{[%clk 0:01:17.4]} 36. b5 {[%clk 0:01:24.9]} 36... f4 {[%clk 0:01:16.9]} 37. c6
{[%clk 0:01:22.6]} 37... b6 {[%clk 0:00:56.8]} 38. Nc8 {[%clk 0:01:09.5]} 38...
Nc7 {[%clk 0:00:39.7]} 39. Nxa7 {[%clk 0:01:02.9]} 39... Nd5 {[%clk 0:00:27.5]}
40. Nc8 {[%clk 0:00:47.6]} 40... e3 {[%clk 0:00:23.4]} 41. fxe3 {[%clk
0:00:48.5]} 41... fxe3 {[%clk 0:00:23.7]} 42. Kd3 {[%clk 0:00:48.9]} 42... e2
{[%clk 0:00:20.2]} 43. Kxe2 {[%clk 0:00:44.4]} 43... Nc3+ {[%clk 0:00:20.7]} 44.
Kf3 {[%clk 0:00:42]} 44... Nxb5 {[%clk 0:00:21.6]} 45. a4 {[%clk 0:00:35.3]}
45... Nd4+ {[%clk 0:00:21.5]} 46. Kg4 {[%clk 0:00:32.5]} 46... Nxc6 {[%clk
0:00:22.4]} 47. Kxg5 {[%clk 0:00:29.5]} 47... Nd4 {[%clk 0:00:18.6]} 48. Nxb6
{[%clk 0:00:26.3]} 48... Ne6+ {[%clk 0:00:18.8]} 49. Kg6 {[%clk 0:00:23.3]}
49... Nf4+ {[%clk 0:00:19]} 50. Kxg7 {[%clk 0:00:23.3]} 50... Nxg2 {[%clk
0:00:19.9]} 51. a5 {[%clk 0:00:19]} 51... Nf4 {[%clk 0:00:17.4]} 52. a6 {[%clk
0:00:13.3]} 52... Ne6+ {[%clk 0:00:17.7]} 53. Kg6 {[%clk 0:00:13.4]} 53... Kf4
{[%clk 0:00:18.2]} 54. h4 {[%clk 0:00:11]} 54... Kg4 {[%clk 0:00:17]} 55. h5
{[%clk 0:00:10.7]} 55... Nf4+ {[%clk 0:00:17.7]} 56. Kh6 {[%clk 0:00:10.2]}
56... Nxh5 {[%clk 0:00:18.6]} 57. a7 {[%clk 0:00:10.4]} 57... Ng3 {[%clk
0:00:19.5]} 58. a8=Q {[%clk 0:00:10.7]} 58... Nf5+ {[%clk 0:00:20]} 59. Kg6
{[%clk 0:00:10.5]} 59... Nh4+ {[%clk 0:00:20.5]} 60. Kf6 {[%clk 0:00:10.5]}
60... Ng2 {[%clk 0:00:21.4]} 61. Qxg2+ {[%clk 0:00:10.1]} 1-0

[Event "*** Titled Tuesday Blitz"]
[Site "Chess.com"]
[Date "2020.04.21"]
[Round "2"]
[White "DrMelekess"]
[Black "lupta_robin"]
[Result "0-1"]
[WhiteElo "2694"]
[BlackElo "2514"]
[TimeControl "180+1"]
[EndTime "10:18:28 PDT"]
[Termination "lupta_robin won on time"]

1. d4 {[%clk 0:03:00.6]} 1... Nf6 {[%clk 0:02:59.3]} 2. Nf3 {[%clk 0:03:01.1]}
2... g6 {[%clk 0:02:59.6]} 3. Nbd2 {[%clk 0:03:00.4]} 3... d5 {[%clk 0:02:58.8]}
4. e3 {[%clk 0:03:00.2]} 4... Bg7 {[%clk 0:02:58.1]} 5. b4 {[%clk 0:03:00.7]}
5... a5 {[%clk 0:02:57.4]} 6. b5 {[%clk 0:03:00.5]} 6... c5 {[%clk 0:02:57.7]}
7. dxc5 {[%clk 0:03:00.3]} 7... Ne4 {[%clk 0:02:54.3]} 8. Nxe4 {[%clk
0:02:53.9]} 8... Bxa1 {[%clk 0:02:51.7]} 9. Bd2 {[%clk 0:02:52.3]} 9... Bg7
{[%clk 0:02:46.8]} 10. Ng3 {[%clk 0:02:51.6]} 10... Qc7 {[%clk 0:02:31.2]} 11.
h4 {[%clk 0:02:44.6]} 11... Qxc5 {[%clk 0:02:25.8]} 12. h5 {[%clk 0:02:44.3]}
12... Nd7 {[%clk 0:02:17.4]} 13. Bd3 {[%clk 0:02:41.5]} 13... Nb6 {[%clk
0:02:07.9]} 14. e4 {[%clk 0:02:18.4]} 14... Bd7 {[%clk 0:01:40]} 15. Be3 {[%clk
0:02:09.2]} 15... Qb4+ {[%clk 0:01:28]} 16. Kf1 {[%clk 0:02:05.8]} 16... Bxb5
{[%clk 0:01:26]} 17. h6 {[%clk 0:01:43.4]} 17... Bb2 {[%clk 0:01:01.5]} 18. c3
{[%clk 0:01:12.7]} 18... Bxd3+ {[%clk 0:00:38.6]} 19. Qxd3 {[%clk 0:01:11.6]}
19... Qc4 {[%clk 0:00:39.2]} 20. Ke2 {[%clk 0:01:00.1]} 20... Na4 {[%clk
0:00:37.5]} 21. Bd4 {[%clk 0:00:50.4]} 21... O-O {[%clk 0:00:30.1]} 22. Qxc4
{[%clk 0:00:30.3]} 22... dxc4 {[%clk 0:00:29.6]} 23. Kd2 {[%clk 0:00:31.2]}
23... f6 {[%clk 0:00:24.8]} 24. Kc2 {[%clk 0:00:30.5]} 24... e5 {[%clk
0:00:24.3]} 25. Be3 {[%clk 0:00:19.1]} 25... Bxc3 {[%clk 0:00:24.6]} 26. Rb1
{[%clk 0:00:18]} 26... Bb4 {[%clk 0:00:24.4]} 27. a3 {[%clk 0:00:17.6]} 27...
Bxa3 {[%clk 0:00:24.5]} 28. Rxb7 {[%clk 0:00:18.5]} 28... Rf7 {[%clk 0:00:24.8]}
29. Rb5 {[%clk 0:00:18.1]} 29... Bb4 {[%clk 0:00:24.8]} 30. Nd2 {[%clk
0:00:14.1]} 30... c3 {[%clk 0:00:22.9]} 31. Nc4 {[%clk 0:00:12.8]} 31... Rd7
{[%clk 0:00:23.3]} 32. Kb3 {[%clk 0:00:10.8]} 32... Rc8 {[%clk 0:00:21.9]} 33.
Nxa5 {[%clk 0:00:03.7]} 33... Bxa5 {[%clk 0:00:20.2]} 34. Rxa5 {[%clk
0:00:03.8]} 34... c2 {[%clk 0:00:16.7]} 35. Rxa4 {[%clk 0:00:02.5]} 35... Rb7+
{[%clk 0:00:16.1]} 36. Rb4 {[%clk 0:00:01.4]} 36... Rxb4+ {[%clk 0:00:15.9]} 37.
Kxb4 {[%clk 0:00:02.3]} 37... c1=Q {[%clk 0:00:16.4]} 38. Bxc1 {[%clk
0:00:02.7]} 38... Rxc1 {[%clk 0:00:17.3]} 39. Kb3 {[%clk 0:00:02.1]} 39... Kf7
{[%clk 0:00:17.5]} 40. Kb2 {[%clk 0:00:02.3]} 40... Rc8 {[%clk 0:00:17.9]} 41.
f3 {[%clk 0:00:01.9]} 41... Ke6 {[%clk 0:00:18.4]} 42. Ne2 {[%clk 0:00:02.3]}
42... f5 {[%clk 0:00:18.8]} 43. Nc3 {[%clk 0:00:02.8]} 43... fxe4 {[%clk
0:00:18.1]} 44. Nxe4 {[%clk 0:00:03.7]} 44... Rc6 {[%clk 0:00:16.8]} 45. Ng5+
{[%clk 0:00:03.4]} 45... Kf5 {[%clk 0:00:15.5]} 46. Nxh7 {[%clk 0:00:04.3]}
46... Rc8 {[%clk 0:00:15.6]} 47. g4+ {[%clk 0:00:03]} 47... Kf4 {[%clk
0:00:14.2]} 48. Nf6 {[%clk 0:00:03.3]} 48... Kxf3 {[%clk 0:00:14.6]} 49. h7
{[%clk 0:00:03.7]} 49... Rh8 {[%clk 0:00:14.3]} 50. Kc2 {[%clk 0:00:04]} 50...
Kf4 {[%clk 0:00:13.4]} 51. Kd2 {[%clk 0:00:02.9]} 51... Kg5 {[%clk 0:00:13.4]}
52. Nd7 {[%clk 0:00:02.1]} 52... Kxg4 {[%clk 0:00:10.8]} 53. Nxe5+ {[%clk
0:00:02.3]} 53... Kh5 {[%clk 0:00:11.3]} 0-1

[Event "*** Titled Tuesday Blitz"]
[Site "Chess.com"]
[Date "2020.04.21"]
[Round "2"]
[White "TengisChess"]
[Black "Olga_Zhuravleva"]
[Result "1-0"]
[WhiteElo "2449"]
[BlackElo "2216"]
[TimeControl "180+1"]
[EndTime "10:18:28 PDT"]
[Termination "TengisChess won by resignation"]

1. c4 {[%clk 0:03:00.9]} 1... e5 {[%clk 0:02:57.9]} 2. Nf3 {[%clk 0:03:01.8]}
2... Nc6 {[%clk 0:02:56.4]} 3. Nc3 {[%clk 0:03:02.2]} 3... Nf6 {[%clk
0:02:56.6]} 4. g3 {[%clk 0:03:02.7]} 4... d5 {[%clk 0:02:56.6]} 5. cxd5 {[%clk
0:03:02.4]} 5... Nxd5 {[%clk 0:02:57.5]} 6. Bg2 {[%clk 0:03:03.1]} 6... Nb6
{[%clk 0:02:57.9]} 7. O-O {[%clk 0:03:03.4]} 7... Be7 {[%clk 0:02:58.4]} 8. a4
{[%clk 0:03:03.9]} 8... a5 {[%clk 0:02:57.2]} 9. d3 {[%clk 0:03:04.4]} 9... O-O
{[%clk 0:02:57.3]} 10. Be3 {[%clk 0:03:04.6]} 10... Re8 {[%clk 0:02:57.1]} 11.
Bxb6 {[%clk 0:03:04.7]} 11... cxb6 {[%clk 0:02:57.1]} 12. Rc1 {[%clk 0:03:05.3]}
12... Bc5 {[%clk 0:02:57.3]} 13. Ne4 {[%clk 0:03:03.9]} 13... Bf8 {[%clk
0:02:56.1]} 14. Nfd2 {[%clk 0:03:02.9]} 14... Nd4 {[%clk 0:02:54.3]} 15. Nc4
{[%clk 0:03:02.1]} 15... Bg4 {[%clk 0:02:49.3]} 16. Nc3 {[%clk 0:03:00.2]} 16...
Rb8 {[%clk 0:02:42.1]} 17. h3 {[%clk 0:02:59.2]} 17... Bh5 {[%clk 0:02:41.8]}
18. g4 {[%clk 0:02:59.3]} 18... Bg6 {[%clk 0:02:42.4]} 19. Nb5 {[%clk
0:02:59.9]} 19... Nxb5 {[%clk 0:02:39.6]} 20. axb5 {[%clk 0:03:00.8]} 20... Bc5
{[%clk 0:02:39.2]} 21. Nxa5 {[%clk 0:02:59.2]} 21... Bxf2+ {[%clk 0:02:27.8]}
22. Rxf2 {[%clk 0:03:00.1]} 22... bxa5 {[%clk 0:02:28.3]} 23. Qa4 {[%clk
0:02:57.4]} 23... Qb6 {[%clk 0:02:26.1]} 24. Qc4 {[%clk 0:02:50.8]} 24... h5
{[%clk 0:02:22.7]} 25. Qc5 {[%clk 0:02:49.8]} 25... Qe6 {[%clk 0:02:13]} 26. Bd5
{[%clk 0:02:49]} 26... Qd7 {[%clk 0:02:10.2]} 27. gxh5 {[%clk 0:02:41.8]} 27...
Bxh5 {[%clk 0:02:09.8]} 28. Bc4 {[%clk 0:02:32.1]} 28... Qxh3 {[%clk 0:02:02.2]}
29. Rg2 {[%clk 0:02:32.1]} 29... b6 {[%clk 0:01:45.7]} 30. Qf2 {[%clk
0:02:25.8]} 30... Re7 {[%clk 0:01:36.5]} 31. Rf1 {[%clk 0:02:24.1]} 31... Rbb7
{[%clk 0:01:15.9]} 32. Rg3 {[%clk 0:02:23.4]} 32... Qd7 {[%clk 0:01:09.1]} 33.
Qg2 {[%clk 0:02:23.2]} 33... g6 {[%clk 0:01:00.1]} 34. Rxg6+ {[%clk 0:02:20.7]}
34... Bxg6 {[%clk 0:00:57.2]} 35. Qxg6+ {[%clk 0:02:20.8]} 35... Kh8 {[%clk
0:00:38.3]} 36. Qh5+ {[%clk 0:02:20.8]} 36... Kg7 {[%clk 0:00:27.6]} 37. Rf2
{[%clk 0:02:19.8]} 37... Re6 {[%clk 0:00:24.7]} 38. Bxe6 {[%clk 0:02:15.4]}
38... Qxe6 {[%clk 0:00:24.3]} 39. Rg2+ {[%clk 0:02:12.8]} 39... Kf8 {[%clk
0:00:22.2]} 40. Qh8+ {[%clk 0:02:12.4]} 40... Ke7 {[%clk 0:00:21.3]} 41. Rg8
{[%clk 0:02:13]} 41... Kd6 {[%clk 0:00:17.4]} 42. Kf1 {[%clk 0:02:02.1]} 42...
Rc7 {[%clk 0:00:15.9]} 43. Rd8+ {[%clk 0:01:57.7]} 43... Kc5 {[%clk 0:00:15.8]}
44. Re8 {[%clk 0:01:45.8]} 44... Qf5+ {[%clk 0:00:14.6]} 45. Ke1 {[%clk
0:01:46]} 45... f6 {[%clk 0:00:14.4]} 46. Qg8 {[%clk 0:01:30.2]} 46... Kxb5
{[%clk 0:00:11.1]} 47. Qb3+ {[%clk 0:01:29.1]} 47... Ka6 {[%clk 0:00:10.9]} 48.
Ra8+ {[%clk 0:01:26.3]} 48... Ra7 {[%clk 0:00:10.8]} 49. Qc4+ {[%clk 0:01:25.4]}
49... Kb7 {[%clk 0:00:10.1]} 50. Rf8 {[%clk 0:01:22]} 50... Qf4 {[%clk
0:00:08.7]} 51. Rf7+ {[%clk 0:01:20.9]} 51... Kb8 {[%clk 0:00:08.3]} 52. Rf8+
{[%clk 0:01:18.6]} 52... Kb7 {[%clk 0:00:08.4]} 53. Qxf4 {[%clk 0:01:11.7]}
53... exf4 {[%clk 0:00:08]} 54. Rxf6 {[%clk 0:01:12.6]} 54... Ka6 {[%clk
0:00:08.2]} 55. Rxf4 {[%clk 0:01:12.7]} 55... Rc7 {[%clk 0:00:08.9]} 56. Kd2
{[%clk 0:01:12.9]} 56... Rc5 {[%clk 0:00:09.2]} 57. e4 {[%clk 0:01:12.2]} 57...
Kb5 {[%clk 0:00:09.8]} 58. d4 {[%clk 0:01:11.2]} 58... Rc4 {[%clk 0:00:09.6]}
59. Kd3 {[%clk 0:01:11.2]} 59... Rb4 {[%clk 0:00:10.3]} 60. Kc3 {[%clk
0:01:11.1]} 60... Rc4+ {[%clk 0:00:10.7]} 61. Kd3 {[%clk 0:01:10.6]} 61... Rb4
{[%clk 0:00:11.2]} 62. Rf5+ {[%clk 0:01:09.1]} 62... Ka4 {[%clk 0:00:10.3]} 63.
Rf2 {[%clk 0:01:05.1]} 63... Rb3+ {[%clk 0:00:10.5]} 64. Kc4 {[%clk 0:01:03.9]}
64... Rb4+ {[%clk 0:00:10.8]} 65. Kd5 {[%clk 0:01:04.3]} 65... Kb3 {[%clk
0:00:10.1]} 66. e5 {[%clk 0:01:03.5]} 66... a4 {[%clk 0:00:10.4]} 67. e6 {[%clk
0:01:03.1]} 67... Rb5+ {[%clk 0:00:10.9]} 68. Kd6 {[%clk 0:01:03.2]} 68... Rb4
{[%clk 0:00:10.1]} 69. d5 {[%clk 0:01:02.6]} 69... Re4 {[%clk 0:00:10.3]} 70.
Kd7 {[%clk 0:01:02.3]} 70... b5 {[%clk 0:00:10.6]} 71. e7 {[%clk 0:01:02.2]}
71... b4 {[%clk 0:00:10.4]} 72. e8=Q {[%clk 0:01:01.4]} 72... Rxe8 {[%clk
0:00:10.9]} 73. Kxe8 {[%clk 0:01:02.3]} 73... a3 {[%clk 0:00:10.7]} 74. bxa3
{[%clk 0:01:02.6]} 74... bxa3 {[%clk 0:00:11.2]} 75. d6 {[%clk 0:01:03.2]} 1-0

[Event "*** Titled Tuesday Blitz"]
[Site "Chess.com"]
[Date "2020.04.21"]
[Round "2"]
[White "Sanyura"]
[Black "PetrolulSah"]
[Result "1-0"]
[WhiteElo "2435"]
[BlackElo "2197"]
[TimeControl "180+1"]
[EndTime "10:18:30 PDT"]
[Termination "Sanyura won on time"]

1. e4 {[%clk 0:03:00.9]} 1... e5 {[%clk 0:02:59.4]} 2. Nf3 {[%clk 0:03:01]} 2...
Nc6 {[%clk 0:02:59.7]} 3. Bb5 {[%clk 0:03:01.1]} 3... a6 {[%clk 0:02:59]} 4. Ba4
{[%clk 0:03:01.4]} 4... Nf6 {[%clk 0:02:58.3]} 5. O-O {[%clk 0:03:01.6]} 5...
Be7 {[%clk 0:02:58.6]} 6. Re1 {[%clk 0:03:01.5]} 6... b5 {[%clk 0:02:58.5]} 7.
Bb3 {[%clk 0:03:01.8]} 7... O-O {[%clk 0:02:57.6]} 8. h3 {[%clk 0:03:01]} 8...
d6 {[%clk 0:02:52.8]} 9. c3 {[%clk 0:03:00.9]} 9... Nb8 {[%clk 0:02:51.7]} 10.
d4 {[%clk 0:02:59.5]} 10... Nbd7 {[%clk 0:02:51.8]} 11. a3 {[%clk 0:02:59.6]}
11... Bb7 {[%clk 0:02:50.9]} 12. Nbd2 {[%clk 0:02:59.7]} 12... Re8 {[%clk
0:02:50]} 13. Ba2 {[%clk 0:02:58.8]} 13... Bf8 {[%clk 0:02:48.3]} 14. b4 {[%clk
0:02:58.7]} 14... c5 {[%clk 0:02:38.9]} 15. d5 {[%clk 0:02:48]} 15... a5 {[%clk
0:02:32.1]} 16. Bb1 {[%clk 0:02:40.5]} 16... axb4 {[%clk 0:02:28.6]} 17. cxb4
{[%clk 0:02:34]} 17... cxb4 {[%clk 0:02:28.4]} 18. Nb3 {[%clk 0:02:33.8]} 18...
bxa3 {[%clk 0:02:17.4]} 19. Rxa3 {[%clk 0:02:34.7]} 19... Nc5 {[%clk 0:02:13.5]}
20. Rxa8 {[%clk 0:02:22]} 20... Qxa8 {[%clk 0:02:12.7]} 21. Bd3 {[%clk
0:02:17.6]} 21... b4 {[%clk 0:01:48.5]} 22. Bb2 {[%clk 0:01:56.5]} 22... Nxd3
{[%clk 0:01:25.5]} 23. Qxd3 {[%clk 0:01:37.3]} 23... Qa2 {[%clk 0:01:24.5]} 24.
Ba1 {[%clk 0:01:24.5]} 24... Ba6 {[%clk 0:01:23.2]} 25. Qe3 {[%clk 0:01:19]}
25... Nxe4 {[%clk 0:01:19.2]} 26. Qxe4 {[%clk 0:01:10.8]} 26... Qxb3 {[%clk
0:01:19]} 27. Ng5 {[%clk 0:01:09.6]} 27... g6 {[%clk 0:01:16.9]} 28. Qh4 {[%clk
0:01:08]} 28... h6 {[%clk 0:01:11.9]} 29. Ne4 {[%clk 0:01:07.9]} 29... Be7
{[%clk 0:00:54.4]} 30. Nf6+ {[%clk 0:00:49.9]} 30... Bxf6 {[%clk 0:00:53.2]} 31.
Qxf6 {[%clk 0:00:50.8]} 31... Qxd5 {[%clk 0:00:50.7]} 32. Qh4 {[%clk 0:00:42.2]}
32... Kh7 {[%clk 0:00:44.9]} 33. Qxb4 {[%clk 0:00:38]} 33... Bb7 {[%clk
0:00:41.9]} 34. f3 {[%clk 0:00:37.8]} 34... Rc8 {[%clk 0:00:38]} 35. Qb1 {[%clk
0:00:34.8]} 35... Qc5+ {[%clk 0:00:36.4]} 36. Kh2 {[%clk 0:00:34.4]} 36... Ba8
{[%clk 0:00:28.6]} 37. Qa2 {[%clk 0:00:32]} 37... Kg8 {[%clk 0:00:26.3]} 38. Bb2
{[%clk 0:00:29.4]} 38... Bd5 {[%clk 0:00:20.8]} 39. Qa6 {[%clk 0:00:27.2]} 39...
Rc6 {[%clk 0:00:17.3]} 40. Qa8+ {[%clk 0:00:24.9]} 40... Rc8 {[%clk 0:00:17.2]}
41. Qa1 {[%clk 0:00:24.7]} 41... Ra8 {[%clk 0:00:13.2]} 42. Qb1 {[%clk 0:00:24]}
42... Qb6 {[%clk 0:00:11.7]} 43. Qc1 {[%clk 0:00:22]} 43... Ra2 {[%clk
0:00:10.2]} 44. Re2 {[%clk 0:00:22.2]} 44... Qb5 {[%clk 0:00:06.8]} 45. Rc2
{[%clk 0:00:21.5]} 45... Bb3 {[%clk 0:00:05.5]} 46. Rc8+ {[%clk 0:00:19.2]}
46... Kg7 {[%clk 0:00:04.8]} 47. Qc7 {[%clk 0:00:12.4]} 47... Be6 {[%clk
0:00:04.2]} 48. Qd8 {[%clk 0:00:12.3]} 48... g5 {[%clk 0:00:01.9]} 49. Qh8+
{[%clk 0:00:11.6]} 49... Kg6 {[%clk 0:00:01.8]} 50. Rg8+ {[%clk 0:00:12.3]}
50... Kf5 {[%clk 0:00:01.7]} 51. Qh7+ {[%clk 0:00:12.5]} 51... Kf4 {[%clk
0:00:01]} 52. Bc1+ {[%clk 0:00:13.1]} 1-0